bitfinex/quotes_SOLUSD_20250617
["timestamp","ask_amount","ask_price","bid_price","bid_amount"]
[1750160776258,6.78894666,150.45,150.39,5.44479514]
[1750160776433,5.44479514,150.44,150.4,5.44479514]
[1750160777272,5.44479514,150.44,150.4,12.0935144]
[1750160777438,5.58695671,150.45,150.4,12.0935144]
[1750160777941,32.7880383,150.47,150.42,5.44479514]
[1750160778143,5.44479514,150.46,150.42,5.44479514]
[1750160779070,5.44479514,150.46,150.42,12.09258432]
[1750160779679,26.14216157,150.47,150.42,12.09258432]
[1750160779844,5.44479514,150.48,150.44,5.44479514]
[1750160780041,5.44479514,150.47,150.43,5.44479514]
[1750160781052,5.44479514,150.47,150.44,6.6471683]
[1750160781766,5.44479514,150.47,150.42,6.64805212]
[1750160782069,5.44479514,150.47,150.43,5.44479514]
[1750160782758,32.6452791,150.49,150.43,12.09212853]
[1750160782956,5.44479514,150.47,150.43,12.09212853]
[1750160783955,0.14216157,150.5,150.46,5.44479514]
[1750160784156,6.64426159,150.51,150.46,5.44479514]
[1750160784362,5.44479514,150.5,150.46,5.44479514]
[1750160784743,6.64426159,150.51,150.45,5.44479514]
[1750160784744,5.44479514,150.49,150.45,5.44479514]
[1750160785369,5.44479514,150.49,150.45,12.09112965]
[1750160785672,6.64426159,150.51,150.45,12.09112965]
[1750160785849,5.44479514,150.49,150.45,12.09112965]
[1750160786046,6.64426159,150.51,150.45,12.09112965]
[1750160786371,5.44479514,150.49,150.45,12.09112965]
[1750160786958,6.64426159,150.51,150.45,12.09112965]
[1750160787272,5.44479514,150.49,150.45,12.09112965]
[1750160789464,5.44479514,150.49,150.43,12.09221803]
[1750160789465,5.44479514,150.48,150.43,12.09221803]
[1750160789950,5.44479514,150.48,150.44,5.44479514]
[1750160791477,6.6440768,150.51,150.44,12.09187105]
[1750160791773,5.44479514,150.49,150.45,5.44479514]
[1750160792071,5.44479514,150.48,150.44,12.09187105]
[1750160792260,5.44479514,150.47,150.43,6.6474302]
[1750160792463,5.44479514,150.48,150.44,5.44479514]
[1750160793102,18.933972,150.5,150.43,6.6474302]
[1750160793385,5.44479514,150.49,150.45,5.44479514]
[1750160794371,5.44479514,150.49,150.46,6.64628472]
[1750160794749,26.0,150.5,150.46,6.64628472]
[1750160794971,5.44479514,150.5,150.46,12.09107986]
[1750160795156,5.44479514,150.5,150.46,6.64628472]
[1750160795357,5.44479514,150.49,150.46,6.64628472]
[1750160798180,6.64423792,150.51,150.46,6.64628472]
[1750160798380,5.44479514,150.49,150.46,6.64628472]
[1750160799950,5.44479514,150.49,150.44,5.44479514]
[1750160800169,5.44479514,150.48,150.43,12.09240532]
[1750160800369,5.44479514,150.46,150.42,5.76]
[1750160800586,5.44479514,150.45,150.42,5.76]
[1750160801678,5.44479514,150.43,150.38,6.64982045]
[1750160801876,5.44479514,150.43,150.39,5.44479514]
[1750160802082,5.44479514,150.42,150.38,12.09461559]
[1750160802279,6.64768088,150.43,150.38,12.09461559]
[1750160802594,5.44479514,150.42,150.38,12.09461559]
[1750160803687,5.44479514,150.41,150.38,6.64982045]
[1750160804387,6.64768088,150.43,150.38,6.64982045]
[1750160804687,5.44479514,150.41,150.38,6.64982045]
[1750160804858,5.44479514,150.41,150.37,22.73045946]
[1750160806383,5.44479514,150.4,150.37,17.28566432]
[1750160807784,6.93193332,150.43,150.37,17.28566432]
[1750160807973,5.44479514,150.41,150.37,22.73045946]
[1750160811889,5.44479514,150.41,150.37,17.28566432]
[1750160812089,5.44479514,150.4,150.37,17.28566432]
[1750160812987,5.44479514,150.41,150.37,17.28566432]
[1750160813496,5.44479514,150.41,150.37,22.73045946]
[1750160819502,6.64810872,150.42,150.37,22.73045946]
[1750160819697,5.44479514,150.41,150.37,22.73045946]
[1750160820698,5.44479514,150.42,150.37,22.73045946]
[1750160820875,14.66154628,150.44,150.4,5.44479514]
[1750160820876,5.44479514,150.44,150.4,5.44479514]
[1750160821071,38.0916925,150.45,150.41,5.44479514]
[1750160821395,32.64689736,150.45,150.39,5.44479514]
[1750160821588,5.44479514,150.44,150.4,5.44479514]
[1750160821978,5.44479514,150.44,150.4,12.09352494]
[1750160825501,5.44479514,150.43,150.4,6.6487298]
[1750160825700,5.44479514,150.42,150.39,6.64917732]
[1750160826015,5.44479514,150.41,150.38,6.64970912]
[1750160828207,6.6479456,150.43,150.38,6.64970912]
[1750160828397,5.44479514,150.42,150.38,12.09450426]
[1750160829179,5.44479514,150.42,150.38,6.64970912]
[1750160829500,5.44479514,150.42,150.38,12.09450426]
[1750160831700,6.64807227,150.42,150.37,17.28567497]
[1750160831874,5.44479514,150.41,150.37,22.73047011]
[1750160832075,5.44479514,150.41,150.37,17.28567497]
[1750160832391,5.44479514,150.41,150.37,22.73047011]
[1750160833004,12.09329863,150.41,150.37,10.63551219]
[1750160833190,5.44479514,150.39,150.37,10.63551219]
[1750160834403,12.09329863,150.41,150.37,10.63551219]
[1750160835107,12.09329863,150.41,150.37,16.08030733]
[1750160835602,6.64805212,150.42,150.37,22.73052539]
[1750160835807,5.44479514,150.41,150.37,22.73052539]
[1750160836909,5.36175172,150.41,150.37,22.73052539]
[1750160838392,5.44479514,150.42,150.38,5.44479514]
[1750160838592,33.66763473,150.43,150.38,5.44479514]
[1750160838908,12.09242987,150.43,150.38,5.44479514]
[1750160839098,12.09242987,150.43,150.39,6.64937828]
[1750160840506,5.44479514,150.42,150.38,12.09461559]
[1750160840727,6.64731792,150.44,150.38,12.09461559]
[1750160840957,5.44479514,150.43,150.38,12.09461559]
[1750160841087,5.44479514,150.42,150.38,12.09461559]
[1750160841486,6.64731792,150.44,150.39,5.44479514]
[1750160841487,5.44479514,150.44,150.39,5.44479514]
[1750160841699,5.44479514,150.44,150.4,5.44479514]
[1750160841900,5.44479514,150.44,150.38,6.64982045]
[1750160842105,5.44479514,150.44,150.4,5.44479514]
[1750160842914,5.44479514,150.44,150.4,12.09333573]
[1750160843604,31.44479514,150.45,150.4,12.09333573]
[1750160844813,7.9205,150.51,150.44,5.44479514]
[1750160845108,7.9205,150.51,150.45,12.09152162]
[1750160845109,12.08940899,150.5,150.45,12.09152162]
[1750160845292,5.44479514,150.49,150.45,12.09152162]
[1750160846708,5.44479514,150.46,150.42,5.44479514]
[1750160847813,5.44479514,150.46,150.42,12.09241947]
[1750160848991,5.44479514,150.46,150.41,12.09310551]
[1750160849199,26.0,150.48,150.41,12.09310551]
[1750160849200,5.44479514,150.45,150.41,12.09310551]
[1750160850895,6.93016616,150.47,150.41,12.09310551]
[1750160851094,6.93016616,150.47,150.4,12.09353847]
[1750160851095,5.44479514,150.44,150.4,12.09353847]
[1750160851305,1.5153,150.46,150.4,12.09353847]
[1750160851607,5.44479514,150.44,150.4,12.09353847]
[1750160852389,5.44479514,150.44,150.4,5.44479514]
[1750160854409,5.44479514,150.44,150.41,6.64849411]
[1750160855613,8.16189118,150.46,150.41,6.64849411]
[1750160855907,5.44479514,150.45,150.41,5.44479514]
[1750160856105,5.44479514,150.46,150.41,5.44479514]
[1750160857798,5.44479514,150.45,150.41,12.09290998]
[1750160859420,6.93043133,150.47,150.41,12.09290998]
[1750160859604,5.44479514,150.45,150.41,12.09290998]
[1750160859806,5.44479514,150.46,150.41,12.09290998]
[1750160860399,6.93043133,150.47,150.41,12.09290998]
[1750160860618,5.44479514,150.46,150.41,12.09290998]
[1750160860824,6.93043133,150.47,150.41,12.09290998]
[1750160860995,5.44479514,150.46,150.41,12.09290998]
[1750160861518,26.0,150.48,150.42,5.44479514]
[1750160861723,26.0,150.48,150.43,5.44479514]
[1750160861724,5.44479514,150.47,150.43,5.44479514]
[1750160863695,5.44479514,150.47,150.43,12.09198618]
[1750160864427,5.44479514,150.47,150.43,6.64719104]
[1750160864619,5.44479514,150.46,150.43,6.64719104]
[1750160865133,5.44479514,150.46,150.4,6.64893617]
[1750160865425,5.44479514,150.46,150.42,5.44479514]
[1750160865597,5.44479514,150.47,150.42,5.44479514]
[1750160866225,5.44479514,150.47,150.43,6.64761018]
[1750160868627,26.0,150.48,150.43,12.09240532]
[1750160868835,31.44479514,150.48,150.44,5.44479514]
[1750160869510,26.0,150.48,150.44,5.44479514]
[1750160870016,26.0,150.48,150.45,6.64672648]
[1750160870216,30.26555067,150.5,150.45,12.09152162]
[1750160870925,5.44479514,150.49,150.45,12.09152162]
[1750160871534,12.08980395,150.49,150.45,12.09152162]
[1750160872434,5.44479514,150.49,150.45,12.09152162]
[1750160872637,30.26555919,150.5,150.45,12.09152162]
[1750160872945,28.63455919,150.5,150.45,12.09152162]
[1750160873134,16.54508216,150.5,150.46,12.09104638]
[1750160873323,28.63450665,150.5,150.46,5.44479514]
[1750160874538,21.9898773,150.5,150.46,6.64622311]
[1750160874847,21.9898773,150.5,150.46,12.09101825]
[1750160875433,16.54508216,150.5,150.46,12.09101825]
[1750160875630,16.54508216,150.5,150.47,5.44479514]
[1750160876047,16.54508216,150.5,150.46,12.09101825]
[1750160876236,21.9898773,150.5,150.46,12.09101825]
[1750160876824,16.54508216,150.5,150.46,12.09101825]
[1750160878754,16.54508216,150.5,150.47,5.44479514]
[1750160879212,16.54508216,150.5,150.46,12.09101825]
[1750160880031,16.54508216,150.5,150.47,5.44479514]
[1750160881238,16.54508216,150.5,150.49,5.44479514]
[1750160881409,16.54508216,150.5,150.48,5.44479514]
[1750160881834,16.54508216,150.5,150.49,5.44479514]
[1750160882143,16.54508216,150.5,150.49,12.08975493]
[1750160884110,16.54508216,150.5,150.49,17.82975493]
[1750160885832,16.54508216,150.5,150.49,38.40532693]
[1750160886139,5.44479514,150.59,150.52,26.0]
[1750160886308,5.44479514,150.6,150.56,5.44479514]
[1750160886508,1.6386,150.61,150.56,5.44479514]
[1750160886738,5.44479514,150.6,150.56,5.44479514]
[1750160887037,1.6386,150.61,150.56,5.44479514]
[1750160887212,1.6386,150.61,150.58,5.44479514]
[1750160887418,18.5165625,150.62,150.58,5.44479514]
[1750160887620,13.07176736,150.62,150.58,5.44479514]
[1750160887822,11.87719514,150.62,150.58,5.44479514]
[1750160888020,6.4324,150.62,150.58,5.44479514]
[1750160888236,17.53807219,150.63,150.58,5.44479514]
[1750160888416,5.44479514,150.62,150.58,5.44479514]
[1750160889817,5.44479514,150.6,150.56,5.44479514]
[1750160891141,6.63966536,150.61,150.56,5.44479514]
[1750160891322,6.63966536,150.61,150.57,5.44479514]
[1750160891738,5.44479514,150.61,150.57,5.44479514]
[1750160893119,6.63922453,150.62,150.57,5.44479514]
[1750160893341,5.44479514,150.61,150.57,5.44479514]
[1750160893537,5.44479514,150.61,150.57,12.08619767]
[1750160894222,12.08401967,150.62,150.57,12.08619767]
[1750160895143,12.08401967,150.62,150.56,6.64187035]
[1750160895324,12.08401967,150.62,150.57,5.44479514]
[1750160895925,6.63922453,150.62,150.57,5.44479514]
[1750160896125,12.08401967,150.62,150.57,5.44479514]
[1750160896426,12.08401967,150.62,150.57,12.08616268]
[1750160898552,5.44479514,150.61,150.57,12.08616268]
[1750160899628,6.63922453,150.62,150.57,12.08616268]
[1750160899819,6.63922453,150.62,150.55,5.74]
[1750160899820,5.44479514,150.58,150.55,5.74]
[1750160900022,5.44479514,150.56,150.52,5.72]
[1750160900223,1.5719,150.6,150.53,5.44479514]
[1750160900224,5.44479514,150.57,150.53,5.44479514]
[1750160900424,5.44479514,150.58,150.54,5.44479514]
[1750160900621,5.44479514,150.58,150.54,12.08752929]
[1750160901035,12.08581876,150.58,150.54,5.44479514]
[1750160901254,5.44479514,150.58,150.54,12.08750032]
[1750160902623,5.44479514,150.58,150.53,6.64319404]
[1750160902824,5.44479514,150.58,150.54,5.44479514]
[1750160903425,5.44479514,150.57,150.53,6.64319404]
[1750160903642,5.44479514,150.56,150.53,6.64319404]
[1750160903849,5.44479514,150.57,150.53,6.64319404]
[1750160904023,5.44479514,150.57,150.53,12.08798918]
[1750160904648,5.44479514,150.58,150.54,5.44479514]
[1750160905661,5.44479514,150.58,150.54,6.64254349]
[1750160905952,5.44479514,150.58,150.54,12.08733863]
[1750160906447,5.44479514,150.57,150.53,6.64302291]
[1750160906640,6.6407361,150.59,150.52,5.72]
[1750160906641,5.44479514,150.56,150.52,5.72]
[1750160906952,5.44479514,150.55,150.52,12.36345418]
[1750160909131,5.44479514,150.56,150.52,12.36345418]
[1750160909333,5.44479514,150.56,150.52,17.80824932]
[1750160909752,12.08656981,150.57,150.53,5.44479514]
[1750160910059,6.92487032,150.59,150.53,12.08795835]
[1750160910362,5.44479514,150.58,150.53,6.64316321]
[1750160910656,5.44479514,150.58,150.53,12.08795835]
[1750160911954,12.08604629,150.58,150.53,12.08795835]
[1750160912734,5.44479514,150.57,150.53,6.64316321]
[1750160913031,12.08627126,150.57,150.53,6.64316321]
[1750160914041,6.92487032,150.59,150.53,6.64316321]
[1750160914250,5.44479514,150.57,150.53,12.08795835]
[1750160920771,6.64074399,150.59,150.53,12.08795835]
[1750160920979,5.44479514,150.58,150.54,5.44479514]
[1750160921655,6.64074399,150.59,150.53,6.64316321]
[1750160921656,8.21202992,150.6,150.55,5.44479514]
[1750160921859,13.65682506,150.6,150.56,5.44479514]
[1750160922881,5.44479514,150.59,150.55,12.08702354]
[1750160925054,5.44479514,150.58,150.53,6.64319404]
[1750160925265,6.64054921,150.59,150.53,6.64319404]
[1750160925266,5.44479514,150.57,150.53,12.08798918]
[1750160926879,5.44479514,150.58,150.54,12.08725884]
[1750160929886,5.44479514,150.58,150.53,6.64319404]
[1750160930076,5.44479514,150.57,150.53,12.08798918]
[1750160932591,5.44479514,150.58,150.54,12.08713812]
[1750160933087,5.44479514,150.58,150.54,6.64234298]
[1750160933986,5.44479514,150.58,150.54,12.08713812]
[1750160934292,6.64075034,150.59,150.54,12.08713812]
[1750160934491,5.44479514,150.58,150.54,12.08713812]
[1750160934893,5.44479514,150.59,150.55,5.44479514]
[1750160935084,5.44479514,150.59,150.54,6.64234298]
[1750160935288,5.44479514,150.59,150.54,12.08713812]
[1750160938684,8.21219896,150.6,150.54,12.08713812]
[1750160938891,5.44479514,150.59,150.54,12.08713812]
[1750160941096,5.44479514,150.58,150.54,12.08713812]
[1750160941314,8.21219896,150.6,150.55,5.44479514]
[1750160941517,5.44479514,150.59,150.55,5.44479514]
[1750160941823,5.44479514,150.59,150.55,12.08686169]
[1750160942410,5.44479514,150.59,150.54,5.44479514]
[1750160943529,5.44479514,150.58,150.54,5.44479514]
[1750160943696,5.44479514,150.56,150.52,17.80829304]
[1750160944721,5.44479514,150.54,150.52,5.72]
[1750160945031,5.44479514,150.53,150.52,5.72]
[1750160946822,5.44479514,150.53,150.46,59.25489586]
[1750160947023,5.44479514,150.5,150.47,12.36584302]
[1750160947622,5.44479514,150.5,150.47,5.72]
[1750160948003,5.44479514,150.51,150.47,17.81056976]
[1750160948706,5.44479514,150.51,150.47,12.09056976]
[1750160949016,5.44479514,150.5,150.46,53.2274486]
[1750160949723,5.44479514,150.49,150.46,41.13651096]
[1750160949896,5.44479514,150.48,150.46,41.13651096]
[1750160950101,5.44479514,150.47,150.43,5.44479514]
[1750160950314,5.44479514,150.47,150.43,12.09223819]
[1750160952737,5.44479514,150.48,150.43,12.09223819]
[1750160954916,5.44479514,150.47,150.43,12.09223819]
[1750160956208,5.44479514,150.46,150.42,17.81278047]
[1750160956611,5.44479514,150.44,150.42,5.72]
[1750160957734,6.64593074,150.47,150.42,5.72]
[1750160957735,5.44479514,150.45,150.42,5.72]
[1750160959405,12.09158744,150.45,150.42,5.72]
[1750160962334,5.44479514,150.45,150.42,5.72]
[1750160963130,5.44479514,150.44,150.42,5.72]
[1750160963927,5.44479514,150.45,150.42,5.72]
[1750160964634,12.09164632,150.45,150.42,5.72]
[1750160965219,5.44479514,150.45,150.42,5.72]
[1750160965409,12.09156763,150.45,150.42,5.72]
[1750160965840,6.93016616,150.47,150.42,5.72]
[1750160966144,5.44479514,150.46,150.42,11.16479514]
[1750160966327,5.44479514,150.46,150.42,17.81279045]
[1750160966515,5.44479514,150.46,150.42,11.16479514]
[1750160966716,5.44479514,150.45,150.42,12.36804172]
[1750160966923,6.64584302,150.47,150.42,12.36804172]
[1750160967139,5.44479514,150.46,150.42,17.81283686]
[1750160967846,5.44479514,150.47,150.43,5.44479514]
[1750160968719,5.44479514,150.48,150.43,5.44479514]
[1750160968916,6.64534351,150.49,150.43,12.09208774]
[1750160969119,5.44479514,150.48,150.44,5.44479514]
[1750160969645,12.09013865,150.49,150.44,5.44479514]
[1750160970029,6.64534351,150.49,150.44,12.09179806]
[1750160970222,5.44479514,150.48,150.44,12.09179806]
[1750160970658,6.64534351,150.49,150.44,12.09179806]
[1750160970968,5.44479514,150.49,150.45,5.44479514]
[1750160971541,3.40414743,150.57,150.44,6.64700292]
[1750160971542,7.6563,150.54,150.47,5.44479514]
[1750160971825,5.44479514,150.52,150.47,5.44479514]
[1750160972020,0.14216157,150.53,150.47,5.44479514]
[1750160972327,12.08798918,150.53,150.48,5.44479514]
[1750160973343,7.6563,150.54,150.49,5.44479514]
[1750160973518,0.28432314,150.55,150.49,5.44479514]
[1750160973719,5.44479514,150.54,150.49,5.44479514]
[1750160974456,12.08760859,150.54,150.49,5.44479514]
[1750160974639,12.08760859,150.54,150.48,12.08990551]
[1750160974640,5.44479514,150.52,150.48,12.08990551]
[1750160974824,6.64281345,150.54,150.47,12.0904851]
[1750160974825,5.44479514,150.51,150.47,12.0904851]
[1750160975149,5.44479514,150.52,150.48,5.44479514]
[1750160975348,5.44479514,150.52,150.48,12.09013077]
[1750160975647,6.64330324,150.53,150.48,12.09013077]
[1750160975845,5.44479514,150.52,150.48,5.44479514]
[1750160976344,5.44479514,150.52,150.48,12.09018383]
[1750160977135,5.44479514,150.51,150.44,25.29681716]
[1750160977335,5.44479514,150.49,150.45,5.44479514]
[1750160977538,5.44479514,150.47,150.43,31.44479514]
[1750160978041,0.28432314,150.51,150.44,5.44479514]
[1750160978042,5.44479514,150.48,150.44,5.44479514]
[1750160979243,12.09027731,150.48,150.44,5.44479514]
[1750160980157,6.64548217,150.48,150.44,5.44479514]
[1750160980353,12.09027731,150.48,150.44,5.44479514]
[1750160980646,12.09027731,150.48,150.43,12.09229704]
[1750160981351,5.44479514,150.47,150.43,12.09229704]
[1750160982349,6.64451827,150.5,150.43,12.09229704]
[1750160982539,5.44479514,150.48,150.44,12.0919382]
[1750160982734,5.44479514,150.48,150.44,6.64714306]
[1750160983151,5.44479514,150.47,150.44,6.64714306]
[1750160984025,6.6442503,150.51,150.45,5.44479514]
[1750160984225,5.44479514,150.5,150.45,5.44479514]
[1750160984553,5.44479514,150.5,150.46,5.44479514]
[1750160984943,2.81505245,150.5,150.46,5.44479514]
[1750160985551,2.81505245,150.5,150.46,12.09106383]
[1750160987441,5.44479514,150.49,150.45,5.44479514]
[1750160987632,5.44479514,150.48,150.44,5.44479514]
[1750160989559,5.44479514,150.48,150.44,12.09164331]
[1750160990646,5.44479514,150.48,150.43,6.64761018]
[1750160990843,5.44479514,150.48,150.44,5.44479514]
[1750160991249,5.44479514,150.48,150.43,6.64761018]
[1750160991250,5.44479514,150.47,150.43,6.64761018]
[1750160991458,5.44479514,150.47,150.43,12.09240532]
[1750160992957,5.44479514,150.48,150.43,12.09240532]
[1750160995358,12.09027804,150.48,150.43,12.09240532]
[1750160997051,12.09027804,150.48,150.44,12.09191778]
[1750160998768,12.09027804,150.48,150.44,5.44479514]
[1750160999269,6.6454829,150.48,150.44,5.44479514]
[1750160999459,12.09027804,150.48,150.44,5.44479514]
[1750161000138,5.44479514,150.47,150.43,12.09220719]
[1750161000337,5.44479514,150.47,150.43,6.64741205]
[1750161000570,5.44479514,150.47,150.43,12.09220719]
[1750161001080,5.44479514,150.47,150.42,5.72]
[1750161001081,5.44479514,150.45,150.42,5.72]
[1750161001440,8.18589464,150.47,150.42,5.72]
[1750161001666,5.44479514,150.43,150.42,5.72]
[1750161002748,5.44479514,150.47,150.42,17.81283259]
[1750161002977,12.09070602,150.47,150.43,5.44479514]
[1750161003561,12.09070602,150.47,150.42,12.36803745]
[1750161003859,5.44479514,150.46,150.42,17.81283259]
[1750161004851,12.09117725,150.46,150.42,11.16479514]
[1750161005054,5.44479514,150.46,150.42,17.81282735]
[1750161005957,6.64603812,150.47,150.43,5.44479514]
[1750161006152,5.44479514,150.47,150.43,5.44479514]
[1750161006354,5.44479514,150.47,150.42,12.36803221]
[1750161006566,5.44479514,150.47,150.43,5.44479514]
[1750161006966,5.44479514,150.47,150.43,12.09236589]
[1750161007178,12.09044204,150.48,150.44,5.44479514]
[1750161008076,12.09044204,150.48,150.43,12.09236589]
[1750161008263,5.44479514,150.47,150.43,12.09236589]
[1750161008475,5.44479514,150.48,150.43,12.09236589]
[1750161008670,5.44479514,150.47,150.43,12.09236589]
[1750161009562,12.0906813,150.47,150.43,12.09236589]
[1750161010455,5.44479514,150.47,150.43,12.09236589]
[1750161010977,5.44479514,150.47,150.43,5.44479514]
[1750161012149,5.44479514,150.47,150.42,12.36789789]
[1750161012457,5.44479514,150.47,150.43,5.44479514]
[1750161013377,5.44479514,150.46,150.42,17.81269303]
[1750161015346,6.6460345,150.47,150.43,5.44479514]
[1750161015561,12.09082964,150.47,150.43,5.44479514]
[1750161016098,5.44479514,150.44,150.39,6.64934418]
[1750161016261,5.44479514,150.43,150.39,6.64934418]
[1750161016783,5.44479514,150.43,150.39,12.09413932]
[1750161017876,5.44479514,150.43,150.38,5.72]
[1750161017877,6.64768972,150.43,150.38,5.72]
[1750161018047,5.44479514,150.43,150.38,17.81449964]
[1750161018374,5.44479514,150.44,150.39,5.44479514]
[1750161018566,5.44479514,150.43,150.39,5.44479514]
[1750161019379,5.44479514,150.42,150.38,5.72]
[1750161020357,5.44479514,150.42,150.38,12.36981321]
[1750161020759,5.44479514,150.42,150.38,17.81460835]
[1750161026060,5.44479514,150.43,150.39,5.44479514]
[1750161026898,5.44479514,150.43,150.38,17.81460835]
[1750161027184,12.09247257,150.43,150.38,17.81460835]
[1750161028566,5.44479514,150.42,150.38,12.36981321]
[1750161028993,5.44479514,150.42,150.38,17.81460835]
[1750161029762,12.09243834,150.43,150.38,17.81460835]
[1750161031400,5.44479514,150.4,150.38,5.72]
[1750161031578,18.933972,150.44,150.38,5.72]
[1750161031779,5.44479514,150.41,150.38,5.72]
[1750161031975,0.28432314,150.44,150.38,5.72]
[1750161032203,5.44479514,150.41,150.38,5.72]
[1750161034290,12.09338954,150.41,150.38,5.72]
[1750161038416,5.44479514,150.41,150.38,5.72]
[1750161039699,12.09339845,150.41,150.38,5.72]
[1750161040093,5.44479514,150.4,150.38,5.72]
[1750161040294,5.44479514,150.39,150.38,5.72]
[1750161043726,12.0942552,150.39,150.37,4.87551219]
[1750161043894,5.44479514,150.38,150.37,4.87551219]
[1750161045727,12.09461559,150.38,150.37,4.87551219]
[1750161048837,10.13879736,150.38,150.37,4.87551219]
[1750161051904,6.64982045,150.38,150.37,4.87551219]
[1750161052109,10.13879736,150.38,150.37,4.87551219]
[1750161053931,33.7135,150.41,150.37,4.87551219]
[1750161054137,3.48897691,150.4,150.37,4.87551219]
[1750161054336,3.48897691,150.39,150.37,4.87551219]
[1750161055534,10.13840568,150.39,150.37,4.87551219]
[1750161058039,3.48897691,150.39,150.37,4.87551219]
[1750161058912,3.48897691,150.41,150.37,4.87551219]
[1750161059131,3.48897691,150.4,150.37,4.87551219]
[1750161059736,3.48897691,150.38,150.37,4.87551219]
[1750161060114,3.48897691,150.39,150.37,4.87551219]
[1750161061641,10.13837781,150.39,150.37,4.87551219]
[1750161063755,10.13795708,150.4,150.37,4.87551219]
[1750161064433,6.64898017,150.4,150.37,4.87551219]
[1750161064638,48.42294891,150.38,150.37,4.87551219]
[1750161065327,53.35591702,150.38,150.37,4.87551219]
[1750161065850,60.00573747,150.38,150.37,4.87551219]
[1750161066033,55.07276936,150.38,150.37,4.87551219]
[1750161067135,85.07276936,150.38,150.37,4.87551219]
[1750161067537,81.58379245,150.38,150.37,4.87551219]
[1750161067717,85.07276936,150.38,150.37,4.87551219]
[1750161069048,87.03765174,150.38,150.37,4.87551219]
[1750161070439,114.03765174,150.38,150.37,4.87551219]
[1750161075563,95.38800288,150.38,150.37,4.87551219]
[1750161077169,65.38800288,150.38,150.37,4.87551219]
[1750161078564,59.95414359,150.38,150.37,4.87551219]
[1750161078749,65.40800288,150.38,150.37,4.87551219]
[1750161083039,82.38676849,150.38,150.37,4.87551219]
[1750161086468,16.97876561,150.38,150.37,4.87551219]
[1750161086650,16.97876561,150.38,150.37,16.97963416]
[1750161089467,16.97876561,150.38,150.37,4.87551219]
[1750161100787,16.97876561,150.38,150.37,11.52577487]
[1750161100969,16.97876561,150.38,150.37,8.36364205]
[1750161101485,16.97876561,150.38,150.37,4.87551219]
[1750161101783,16.97876561,150.38,150.37,11.52577487]
[1750161101991,16.97876561,150.38,150.37,15.01390473]
[1750161106572,16.97876561,150.38,150.37,11.52577487]
[1750161107791,16.97876561,150.38,150.37,15.01390473]
[1750161108289,16.97876561,150.38,150.37,11.52577487]
[1750161109379,16.97876561,150.38,150.37,4.87551219]
[1750161116281,20.46689547,150.38,150.37,4.87551219]
[1750161117197,23.62858606,150.38,150.37,4.87551219]
[1750161117403,27.11671592,150.38,150.37,4.87551219]
[1750161117792,46.05068792,150.38,150.37,4.87551219]
[1750161123400,73.03068792,150.38,150.37,4.87551219]
[1750161123598,77.96030446,150.38,150.37,4.87551219]
[1750161124220,77.96030446,150.38,150.3,5.72]
[1750161124221,18.933972,150.34,150.3,5.72]
[1750161124383,3.48812986,150.32,150.3,5.72]
[1750161124713,18.933972,150.34,150.26,26.0]
[1750161124714,3.48812986,150.31,150.26,10.14310772]
[1750161124915,3.48812986,150.31,150.27,3.48812986]
[1750161126189,3.48812986,150.3,150.26,6.65497786]
[1750161126388,3.48812986,150.3,150.26,10.14310772]
[1750161127702,10.14132786,150.31,150.27,3.48812986]
[1750161128492,6.65203219,150.33,150.29,3.48812986]
[1750161128789,10.14016205,150.33,150.29,3.48812986]
[1750161128989,3.48812986,150.33,150.29,3.48812986]
[1750161129186,6.65177811,150.34,150.29,3.48812986]
[1750161129389,45.49150971,150.35,150.3,3.48812986]
[1750161129390,55.63090242,150.35,150.3,3.48812986]
[1750161129998,3.48812986,150.34,150.3,3.48812986]
[1750161130432,10.13977622,150.34,150.3,3.48812986]
[1750161130718,3.48812986,150.33,150.29,10.14161503]
[1750161130924,5.45465743,150.33,150.29,12.1081426]
[1750161131827,6.65164636,150.34,150.29,12.1081426]
[1750161132043,5.45465743,150.33,150.29,12.1081426]
[1750161138149,6.65164636,150.34,150.29,12.1081426]
[1750161138443,5.45465743,150.33,150.29,12.1081426]
[1750161138802,5.45465743,150.33,150.29,5.45465743]
[1750161139001,6.65164636,150.34,150.29,5.45465743]
[1750161139339,5.45465743,150.33,150.29,5.45465743]
[1750161139701,24.94616714,150.35,150.31,5.45465743]
[1750161140123,19.49150971,150.35,150.31,5.45465743]
[1750161140320,19.49150971,150.35,150.32,5.45465743]
[1750161141609,24.94616714,150.35,150.31,6.65265184]
[1750161141801,24.94616714,150.35,150.31,12.10730927]
[1750161142958,19.49150971,150.35,150.33,5.45465743]
[1750161143141,19.49150971,150.35,150.31,23.2849451]
[1750161143335,19.49150971,150.35,150.34,5.45465743]
[1750161145060,19.49150971,150.35,150.31,23.2849451]
[1750161145231,19.49150971,150.35,150.34,5.45465743]
[1750161147037,19.49150971,150.35,150.34,12.10624715]
[1750161148831,31.45465743,150.41,150.34,12.10624715]
[1750161149035,31.45465743,150.41,150.37,12.10471866]
[1750161149674,5.45465743,150.4,150.36,12.10523651]